fUST/lending_fUST_20240726
["ID","MTS","AMOUNT","RATE_DAILY","PERIOD"]
[333253184,1721987452109,-500.0,0.00014104,2]
[333253185,1721987452121,-994.79,0.00014104,2]
[333253186,1721987452131,-633.3,0.00014104,2]
[333253187,1721987452140,-500.0,0.00014104,2]
[333253188,1721987452150,-737.48,0.00014104,2]
[333253189,1721987452159,-607.08,0.00014104,2]
[333253190,1721987452169,-3024.34,0.00014104,2]
[333253191,1721987452179,-500.0,0.00014104,2]
[333253192,1721987452189,-3583.92,0.00014104,2]
[333253193,1721987452199,-777.62,0.00014104,2]
[333253194,1721987452209,-623.2,0.00014104,2]
[333253195,1721987452218,-500.0,0.00014104,2]
[333253196,1721987452229,-1162.08,0.00014104,2]
[333253197,1721987452238,-1141.69,0.00014104,2]
[333253198,1721987452248,-5976.89,0.00014104,2]
[333253199,1721987452258,-500.0,0.00014104,2]
[333253200,1721987452268,-1192.34,0.00014104,2]
[333253201,1721987452277,-475.05915055,0.00014104,2]
[333253202,1721987452288,-500.0,0.00014104,2]
[333253203,1721987452297,-929.05,0.00014104,2]
[333253204,1721987452307,-634.64808383,0.00014104,2]
[333253205,1721987452317,-1021.65,0.00014104,2]
[333253206,1721987452327,-500.0,0.00014104,2]
[333253207,1721987452337,-866.2,0.00014104,2]
[333253208,1721987452346,-567.98,0.00014104,2]
[333253209,1721987452356,-500.0,0.00014104,2]
[333253210,1721987452365,-880.03,0.00014104,2]
[333253211,1721987452375,-500.0,0.00014104,2]
[333253212,1721987452385,-500.0,0.00014113,2]
[333253213,1721987452394,-1108.05,0.00014113,2]
[333253214,1721987452406,-500.0,0.00014113,2]
[333253215,1721987452419,-500.0,0.00014113,2]
[333253216,1721987452429,-388.32478636,0.00014113,2]
[333253217,1721987452440,-500.0,0.00014113,2]
[333253218,1721987452450,-704.05,0.00014113,2]
[333253219,1721987452462,-799.26,0.00014113,2]
[333253220,1721987452472,-501.22954093,0.00014113,2]
[333253221,1721987452482,-500.0,0.00014113,2]
[333253222,1721987452492,-500.0,0.00014113,2]
[333253223,1721987452503,-500.0,0.00014113,2]
[333253224,1721987452522,-566.23,0.00014113,2]
[333253225,1721987452533,-386.11989247,0.00014113,2]
[333253226,1721987452548,-679.45,0.00014113,2]
[333253227,1721987452557,-500.0,0.00014113,2]
[333253228,1721987452569,-1167.37,0.00014113,2]
[333253229,1721987452583,-500.0,0.00014113,2]
[333253230,1721987452593,-500.0,0.00014113,2]
[333253231,1721987452603,-500.0,0.00014113,2]
[333253232,1721987452614,-522.47672591,0.00014113,2]
[333253233,1721987452624,-500.0,0.00014113,2]
[333253234,1721987452634,-500.0,0.00014113,2]
[333253235,1721987452643,-896.48,0.00014113,2]
[333253236,1721987452654,-780.57,0.00014113,2]
[333253237,1721987452664,-151.0,0.00014113,2]
[333253238,1721987452674,-194.970975,0.00014113,2]
[333253239,1721987452684,-194.970975,0.00014113,2]
[333253240,1721987452693,-1179.76,0.00014113,2]
[333253241,1721987452704,-500.0,0.00014113,2]
[333253242,1721987452714,-520.34,0.00014113,2]
[333253243,1721987452725,-500.0,0.00014113,2]
[333253244,1721987452735,-738.27,0.00014113,2]
[333253245,1721987452745,-746.78,0.00014113,2]
[333253246,1721987452754,-500.0,0.00014113,2]
[333253247,1721987452765,-609.73,0.00014113,2]
[333253248,1721987452775,-500.0,0.00014113,2]
[333253249,1721987452785,-700.99,0.00014113,2]
[333253250,1721987452794,-500.0,0.00014113,2]
[333253251,1721987452805,-2567.93,0.00014113,2]
[333253252,1721987452814,-500.0,0.00014113,2]
[333253253,1721987452824,-1329.26,0.00014113,2]
[333253254,1721987452834,-151.0,0.00014113,2]
[333253255,1721987452843,-315.23908,0.00014113,2]
[333253256,1721987452853,-151.0,0.00014113,2]
[333253257,1721987452862,-1300.1,0.00014113,2]
[333253258,1721987452872,-315.23908,0.00014113,2]
[333253259,1721987452882,-1890.19,0.00014113,2]
[333253260,1721987452892,-5809.86,0.00014113,2]
[333253261,1721987452901,-500.0,0.00014113,2]
[333253262,1721987452911,-151.0,0.00014113,2]
[333253263,1721987452921,-1058.86,0.00014113,2]
[333253264,1721987452931,-500.0,0.00014113,2]
[333253265,1721987452940,-963.09,0.00014113,2]
[333253266,1721987452950,-500.0,0.00014113,2]
[333253267,1721987452960,-500.0,0.00014113,2]
[333253268,1721987452969,-500.0,0.00014113,2]
[333253269,1721987452980,-500.0,0.00014113,2]
[333253270,1721987452990,-500.0,0.00014113,2]
[333253271,1721987453002,-500.0,0.00014113,2]
[333253272,1721987453016,-7123.51,0.00014113,2]
[333253273,1721987453026,-566.86,0.00014113,2]
[333253274,1721987453038,-3124.81,0.00014113,2]
[333253275,1721987453048,-500.0,0.00014113,2]
[333253276,1721987453059,-1536.44,0.00014113,2]
[333253277,1721987453072,-593.97,0.00014113,2]
[333253278,1721987453083,-500.0,0.00014113,2]
[333253279,1721987453097,-501.23,0.00014113,2]
[333253280,1721987453108,-500.0,0.00014113,2]
[333253281,1721987453244,-1001.14,0.00014113,2]
[333253282,1721987453273,-2023.44,0.00014113,2]
[333253283,1721987453283,-500.0,0.00014113,2]
[333253284,1721987453295,-698.16,0.00014113,2]
[333253285,1721987453306,-500.0,0.00014113,2]
[333253286,1721987453317,-1101.57,0.00014113,2]
[333253287,1721987453329,-868.86,0.00014113,2]
[333253288,1721987453340,-1638.17,0.00014113,2]
[333253289,1721987453352,-151.0,0.00014113,2]
[333253290,1721987453362,-1118.32,0.00014113,2]
[333253291,1721987453373,-151.0,0.00014113,2]
[333253292,1721987453385,-500.0,0.00014113,2]
[333253293,1721987453395,-1868.63,0.00014113,2]
[333253294,1721987453404,-500.0,0.00014113,2]
[333253295,1721987453415,-151.0,0.00014113,2]
[333253296,1721987453425,-597.62,0.00014113,2]
[333253297,1721987453436,-500.0,0.00014113,2]
[333253298,1721987453447,-569.71,0.00014113,2]
[333253299,1721987453457,-985.32,0.00014113,2]
[333253300,1721987453469,-500.0,0.00014113,2]
[333253301,1721987453480,-500.0,0.00014113,2]
[333253302,1721987453491,-900.51,0.00014113,2]
[333253303,1721987453500,-500.0,0.00014113,2]
[333253304,1721987453511,-500.0,0.00014113,2]
[333253305,1721987453521,-1309.55,0.00014113,2]
[333253306,1721987453530,-989.7,0.00014113,2]
[333253307,1721987453543,-151.0,0.00014113,2]
[333253308,1721987453553,-500.0,0.00014113,2]
[333253309,1721987453563,-500.0,0.00014113,2]
[333253310,1721987453573,-151.0,0.00014115,2]
[333253311,1721987453582,-238.607116,0.00014115,2]
[333253312,1721987453592,-238.607116,0.00014115,2]
[333253313,1721987453602,-151.0,0.00014115,2]
[333253314,1721987453611,-194.970975,0.00014115,2]
[333253315,1721987453624,-194.970975,0.00014115,2]
[333253316,1721987453634,-500.0,0.00014123,2]
[333253317,1721987453644,-506.16,0.00014123,2]
[333253318,1721987453654,-365.25620267,0.00014123,2]
[333253319,1721987453663,-500.0,0.00014123,2]
[333253320,1721987453673,-634.24,0.00014123,2]
[333253321,1721987453682,-553.55,0.00014123,2]
[333253322,1721987453691,-500.0,0.00014123,2]
[333253323,1721987453701,-500.0,0.00014123,2]
[333253324,1721987453711,-500.0,0.00014123,2]
[333253325,1721987453720,-500.0,0.00014123,2]
[333253326,1721987453730,-500.0,0.00014123,2]
[333253327,1721987453739,-500.0,0.00014123,2]
[333253328,1721987453749,-507.41780141,0.00014123,2]
[333253329,1721987453758,-175.008127,0.00014123,2]
[333253330,1721987453768,-1031.47,0.00014123,2]
[333253331,1721987453777,-500.0,0.00014123,2]
[333253332,1721987453787,-175.008127,0.00014123,2]
[333253333,1721987453796,-630.61,0.00014123,2]
[333253334,1721987453806,-504.17779074,0.00014123,2]
[333253335,1721987453815,-151.0,0.00014123,2]
[333253336,1721987453825,-500.0,0.00014123,2]
[333253337,1721987453835,-500.0,0.00014123,2]
[333253338,1721987453844,-866.99,0.00014123,2]
[333253339,1721987453853,-500.0,0.00014123,2]
[333253340,1721987453862,-500.0,0.00014123,2]
[333253341,1721987453872,-762.69,0.00014123,2]
[333253342,1721987453882,-500.0,0.00014123,2]
[333253343,1721987453891,-500.0,0.00014123,2]
[333253344,1721987453901,-825.83,0.00014123,2]
[333253345,1721987453910,-508.77,0.00014123,2]
[333253346,1721987453920,-500.0,0.00014123,2]
[333253347,1721987453929,-500.0,0.00014123,2]
[333253348,1721987453938,-500.0,0.00014123,2]
[333253349,1721987453947,-192.62994465,0.00014123,2]
[333253350,1721987453957,-500.0,0.00014123,2]
[333253351,1721987453966,-997.35,0.00014123,2]
[333253352,1721987453975,-238.607116,0.00014123,2]
[333253353,1721987453985,-238.607116,0.00014123,2]
[333253354,1721987453994,-500.0,0.00014123,2]
[333253355,1721987454005,-501.81785136,0.00014123,2]
[333253356,1721987454015,-500.0,0.00014123,2]
[333253357,1721987454024,-508.02940413,0.00014123,2]
[333253358,1721987454033,-500.0,0.00014123,2]
[333253359,1721987454043,-500.0,0.00014123,2]
[333253360,1721987454052,-702.32,0.00014123,2]
[333253361,1721987454062,-500.0,0.00014123,2]
[333253362,1721987454072,-500.0,0.00014123,2]
[333253363,1721987454081,-194.970975,0.00014123,2]
[333253364,1721987454091,-194.970975,0.00014123,2]
[333253365,1721987454101,-252.11695064,0.00014123,2]
[333253366,1721987454111,-522.34,0.00014123,2]
[333253367,1721987454120,-500.0,0.00014123,2]
[333253368,1721987454129,-1026.01,0.00014123,2]
[333253369,1721987454145,-500.0,0.00014123,2]
[333253370,1721987454158,-519.84560829,0.00014123,2]
[333253371,1721987454168,-500.0,0.00014123,2]
[333253372,1721987454179,-500.0,0.00014123,2]
[333253373,1721987454189,-500.0,0.00014123,2]
[333253374,1721987454200,-500.0,0.00014123,2]
[333253375,1721987454211,-151.0,0.00014123,2]
[333253376,1721987454223,-315.23908,0.00014123,2]
[333253377,1721987454233,-315.23908,0.00014123,2]
[333253378,1721987454243,-151.0,0.00014123,2]
[333253379,1721987454253,-151.0,0.00014123,2]
[333253380,1721987454264,-151.0,0.00014123,2]
[333253381,1721987454275,-151.0,0.00014123,2]
[333253382,1721987454286,-151.0,0.00014123,2]
[333253383,1721987454298,-218.646936,0.00014124,2]
[333253384,1721987454309,-151.0,0.00014134,2]
[333253385,1721987454319,-151.389932,0.00014134,2]
[333253386,1721987454329,-375.91383194,0.00014134,2]
[333253387,1721987454339,-151.0,0.00014134,2]
[333253388,1721987454350,-151.0,0.00014134,2]
[333253389,1721987454362,-500.0,0.00014134,2]
[333253390,1721987454374,-151.0,0.00014134,2]
[333253391,1721987454384,-500.0,0.00014134,2]
[333253392,1721987454397,-758.001641,0.00014134,2]
[333253393,1721987454409,-758.001641,0.00014134,2]
[333253394,1721987454421,-175.008127,0.00014134,2]
[333253395,1721987454431,-175.008127,0.00014134,2]
[333253396,1721987454441,-151.0,0.00014135,2]
[333253397,1721987454450,-218.646936,0.00014135,2]
[333253398,1721987454460,-151.0,0.00014135,2]
[333253399,1721987454469,-758.001641,0.00014135,2]
[333253400,1721987454479,-758.001641,0.00014135,2]
[333253401,1721987454489,-151.0,0.00014135,2]
[333253402,1721987454498,-238.607116,0.00014135,2]
[333253403,1721987454509,-238.607116,0.00014135,2]
[333253404,1721987454519,-166.666666,0.0001414,2]
[333253405,1721987454529,-151.0,0.00014146,2]
[333253406,1721987454542,-151.0,0.00014146,2]
[333253407,1721987454553,-300.0,0.00014182,2]
[333253408,1721987454564,-194.970975,0.00014185,2]
[333253409,1721987454576,-194.970975,0.00014185,2]
[333253410,1721987454588,-1000.0,0.00014194,2]
[333253411,1721987454597,-1000.0,0.00014213,2]
[333253412,1721987454607,-300.0,0.00014223,2]
[333253413,1721987454619,-1000.0,0.00014227,2]
[333253414,1721987454629,-1000.0,0.00014244,2]
[333253415,1721987454640,-1000.0,0.00014245,2]
[333253416,1721987454651,-750.0,0.00014247,2]
[333253417,1721987454662,-1000.0,0.00014271,2]
[333253418,1721987454672,-1000.0,0.00014272,2]
[333253419,1721987454681,-1000.0,0.00014274,2]
[333253420,1721987454691,-1000.0,0.00014275,2]
[333253421,1721987454700,-1000.0,0.00014281,2]
[333253422,1721987454710,-1000.0,0.00014286,2]
[333253423,1721987454720,-1000.0,0.00014299,2]
[333253424,1721987454729,-600.0,0.00014304,2]
[333253425,1721987454739,-1000.0,0.00014304,2]
[333253426,1721987454750,-1000.0,0.00014307,2]
[333253427,1721987454762,-1000.0,0.00014325,2]
[333253428,1721987454773,-1000.0,0.00014334,2]
[333253429,1721987454783,-153.0,0.00014335,2]
[333253430,1721987454797,-153.0,0.00014335,2]
[333253431,1721987454808,-153.0,0.00014335,2]
[333253432,1721987454818,-153.0,0.00014335,2]
[333253433,1721987454829,-153.0,0.00014335,2]
[333253434,1721987454845,-153.0,0.00014335,2]
[333253435,1721987454856,-153.0,0.00014335,2]
[333253436,1721987454867,-153.0,0.00014335,2]
[333253437,1721987454877,-153.0,0.00014335,2]
[333253438,1721987454888,-153.0,0.00014335,2]
[333253439,1721987454899,-153.0,0.00014335,2]
[333253440,1721987454910,-153.0,0.00014335,2]
[333253441,1721987454920,-153.0,0.00014335,2]
[333253442,1721987454930,-153.0,0.00014335,2]
[333253443,1721987454941,-153.0,0.00014335,2]
[333253444,1721987454951,-153.0,0.00014335,2]
[333253445,1721987454961,-153.0,0.00014335,2]
[333253446,1721987454971,-153.0,0.00014335,2]
[333253447,1721987454982,-153.0,0.00014335,2]
[333253448,1721987454991,-153.0,0.00014335,2]
[333253449,1721987455000,-153.0,0.00014335,2]
[333253450,1721987455010,-153.0,0.00014335,2]
[333253451,1721987455019,-153.0,0.00014335,2]
[333253452,1721987455028,-153.0,0.00014335,2]
[333253453,1721987455038,-153.0,0.00014335,2]
[333253454,1721987455047,-153.0,0.00014335,2]
[333253455,1721987455056,-153.0,0.00014335,2]
[333253456,1721987455066,-153.0,0.00014335,2]
[333253457,1721987455075,-153.0,0.00014335,2]
[333253458,1721987455084,-153.0,0.00014335,2]
[333253459,1721987455093,-153.0,0.00014335,2]
[333253460,1721987455104,-153.0,0.00014335,2]
[333253461,1721987455115,-153.0,0.00014335,2]
[333253462,1721987455125,-153.0,0.00014335,2]
[333253463,1721987455134,-153.0,0.00014335,2]
[333253464,1721987455143,-153.0,0.00014335,2]
[333253465,1721987455153,-153.0,0.00014335,2]
[333253466,1721987455163,-153.0,0.00014335,2]
[333253467,1721987455174,-153.0,0.00014335,2]
[333253468,1721987455184,-153.0,0.00014335,2]
[333253469,1721987455194,-153.0,0.00014335,2]
[333253470,1721987455204,-153.0,0.00014335,2]
[333253471,1721987455215,-153.0,0.00014335,2]
[333253472,1721987455226,-153.0,0.00014335,2]
[333253473,1721987455237,-153.0,0.00014335,2]
[333253474,1721987455248,-153.0,0.00014335,2]
[333253475,1721987455260,-153.0,0.00014335,2]
[333253476,1721987455271,-153.0,0.00014335,2]
[333253477,1721987455281,-153.0,0.00014335,2]
[333253478,1721987455295,-153.0,0.00014335,2]
[333253479,1721987455305,-153.0,0.00014335,2]
[333253480,1721987455314,-153.0,0.00014335,2]
[333253481,1721987455325,-153.0,0.00014335,2]
[333253482,1721987455336,-153.0,0.00014335,2]
[333253483,1721987455348,-153.0,0.00014335,2]
[333253484,1721987455358,-1000.0,0.00014336,2]
[333253485,1721987455368,-1000.0,0.00014337,2]
[333253486,1721987455379,-620.03418597,0.0001434,2]
[333253487,1721987455391,-1000.0,0.00014342,2]
[333253488,1721987455401,-1000.0,0.00014347,2]
[333253489,1721987455410,-151.0,0.00014347,2]
[333253490,1721987455422,-315.23908,0.00014347,2]
[333253491,1721987455433,-315.23908,0.00014347,2]
[333253492,1721987455444,-151.0,0.00014347,2]
[333253493,1721987455455,-1000.0,0.00014348,2]
[333253494,1721987455466,-1000.0,0.0001435,2]
[333253495,1721987455476,-151.0,0.0001435,2]
[333253496,1721987455486,-194.302186,0.0001435,2]
[333253497,1721987455497,-1000.0,0.00014356,2]
[333253498,1721987455509,-300.0,0.00014357,2]
[333253499,1721987455519,-1000.0,0.00014359,2]
[333253500,1721987455528,-500.0,0.00014378,2]
[333253501,1721987455539,-500.0,0.00014378,2]
[333253502,1721987455550,-514.90301431,0.00014378,2]
[333253503,1721987455562,-500.0,0.00014378,2]
[333253504,1721987455573,-500.0,0.00014378,2]
[333253505,1721987455583,-500.0,0.00014378,2]
[333253506,1721987455594,-500.0,0.00014378,2]
[333253507,1721987455605,-1032.48,0.00014378,2]
[333253508,1721987455618,-1686.25,0.00014378,2]
[333253509,1721987455630,-500.0,0.00014378,2]
[333253510,1721987455640,-921.54,0.00014378,2]
[333253511,1721987455651,-598.45,0.00014378,2]
[333253512,1721987455662,-323.86177293,0.00014378,2]
[333253513,1721987455672,-967.8,0.00014378,2]
[333253514,1721987455681,-569.46405439,0.00014378,2]
[333253515,1721987455690,-500.0,0.00014378,2]
[333253516,1721987455700,-504.95062161,0.00014378,2]
[333253517,1721987455709,-500.0,0.00014378,2]
[333253518,1721987455754,-994.79,0.00014378,2]
[333253519,1721987455766,-500.0,0.00014378,2]
[333253520,1721987455775,-633.3,0.00014378,2]
[333253521,1721987455784,-500.0,0.00014378,2]
[333253522,1721987455793,-737.48,0.00014378,2]
[333253523,1721987455803,-607.08,0.00014378,2]
[333253524,1721987455812,-3024.34,0.00014378,2]
[333253525,1721987455821,-500.0,0.00014378,2]
[333253526,1721987455831,-3583.92,0.00014378,2]
[333253527,1721987455840,-777.62,0.00014378,2]
[333253528,1721987455849,-623.2,0.00014378,2]
[333253529,1721987455858,-500.0,0.00014378,2]
[333253530,1721987455867,-1162.08,0.00014378,2]
[333253531,1721987455877,-151.0,0.00014378,2]
[333253532,1721987455886,-1141.69,0.00014378,2]
[333253533,1721987455895,-5976.89,0.00014378,2]
[333253534,1721987455905,-500.0,0.00014378,2]
[333253535,1721987455914,-1192.34,0.00014378,2]
[333253536,1721987455924,-500.0,0.00014378,2]
[333253537,1721987455935,-929.05,0.00014378,2]
[333253538,1721987455944,-1021.65,0.00014378,2]
[333253539,1721987455953,-500.0,0.00014378,2]
[333253540,1721987455963,-866.2,0.00014378,2]
[333253541,1721987455974,-567.98,0.00014378,2]
[333253542,1721987455984,-500.0,0.00014378,2]
[333253543,1721987455994,-880.03,0.00014378,2]
[333253544,1721987456004,-500.0,0.00014378,2]
[333253545,1721987456015,-1000.0,0.00014384,2]
[333253546,1721987456026,-1000.0,0.00014386,2]
[333253547,1721987456037,-500.0,0.00014387,2]
[333253548,1721987456047,-1108.05,0.00014387,2]
[333253549,1721987456057,-500.0,0.00014387,2]
[333253550,1721987456066,-500.0,0.00014387,2]
[333253551,1721987456077,-500.0,0.00014387,2]
[333253552,1721987456088,-704.05,0.00014387,2]
[333253553,1721987456098,-799.26,0.00014387,2]
[333253554,1721987456108,-500.0,0.00014387,2]
[333253555,1721987456119,-500.0,0.00014387,2]
[333253556,1721987456130,-500.0,0.00014387,2]
[333253557,1721987456142,-566.23,0.00014387,2]
[333253558,1721987456153,-679.45,0.00014387,2]
[333253559,1721987456164,-158.85763142,0.00014387,2]
[333253560,1721987456173,-1167.37,0.00014387,2]
[333253561,1721987456183,-500.0,0.00014387,2]
[333253562,1721987456192,-307.18148472,0.00014387,2]
[333253563,1721987456201,-500.0,0.00014387,2]
[333253564,1721987456212,-500.0,0.00014387,2]
[333253565,1721987456222,-500.0,0.00014387,2]
[333253566,1721987456233,-896.48,0.00014387,2]
[333253567,1721987456243,-780.57,0.00014387,2]
[333253568,1721987456255,-1179.76,0.00014387,2]
[333253569,1721987456265,-500.0,0.00014387,2]
[333253570,1721987456278,-520.34,0.00014387,2]
[333253571,1721987456288,-500.0,0.00014387,2]
[333253572,1721987456299,-738.27,0.00014387,2]
[333253573,1721987456309,-746.78,0.00014387,2]
[333253574,1721987456320,-500.0,0.00014387,2]
[333253575,1721987456330,-609.73,0.00014387,2]
[333253576,1721987456340,-500.0,0.00014387,2]
[333253577,1721987456353,-700.99,0.00014387,2]
[333253578,1721987456362,-500.0,0.00014387,2]
[333253579,1721987456373,-2567.93,0.00014387,2]
[333253580,1721987456383,-500.0,0.00014387,2]
[333253581,1721987456394,-1329.26,0.00014387,2]
[333253582,1721987456404,-1300.1,0.00014387,2]
[333253583,1721987456416,-1890.19,0.00014387,2]
[333253584,1721987456427,-5809.86,0.00014387,2]
[333253585,1721987456439,-500.0,0.00014387,2]
[333253586,1721987456448,-1058.86,0.00014387,2]
[333253587,1721987456457,-500.0,0.00014387,2]
[333253588,1721987456466,-963.09,0.00014387,2]
[333253589,1721987456475,-500.0,0.00014387,2]
[333253590,1721987456485,-500.0,0.00014387,2]
[333253591,1721987456496,-500.0,0.00014387,2]
[333253592,1721987456507,-500.0,0.00014387,2]
[333253593,1721987456517,-500.0,0.00014387,2]
[333253594,1721987456528,-500.0,0.00014387,2]
[333253595,1721987456540,-7123.51,0.00014387,2]
[333253596,1721987456551,-566.86,0.00014387,2]
[333253597,1721987456560,-3124.81,0.00014387,2]
[333253598,1721987456569,-500.0,0.00014387,2]
[333253599,1721987456579,-1536.44,0.00014387,2]
[333253600,1721987456591,-593.97,0.00014387,2]
[333253601,1721987456601,-560.69494831,0.00014387,2]
[333253602,1721987456612,-501.23,0.00014387,2]
[333253603,1721987456623,-500.0,0.00014387,2]
[333253604,1721987456634,-1001.14,0.00014387,2]
[333253605,1721987456644,-2023.44,0.00014387,2]
[333253606,1721987456656,-500.0,0.00014387,2]
[333253607,1721987456666,-698.16,0.00014387,2]
[333253608,1721987456677,-500.0,0.00014387,2]
[333253609,1721987456685,-1101.57,0.00014387,2]
[333253610,1721987456696,-868.86,0.00014387,2]
[333253611,1721987456708,-1638.17,0.00014387,2]
[333253612,1721987456719,-1118.32,0.00014387,2]
[333253613,1721987456728,-500.0,0.00014387,2]
[333253614,1721987456740,-1868.63,0.00014387,2]
[333253615,1721987456752,-500.0,0.00014387,2]
[333253616,1721987456763,-151.0,0.00014387,2]
[333253617,1721987456775,-597.62,0.00014387,2]
[333253618,1721987456787,-500.0,0.00014387,2]
[333253619,1721987456797,-569.71,0.00014387,2]
[333253620,1721987456808,-985.32,0.00014387,2]
[333253621,1721987456819,-500.0,0.00014387,2]
[333253622,1721987456831,-500.0,0.00014387,2]
[333253623,1721987456841,-900.51,0.00014387,2]
[333253624,1721987456851,-500.0,0.00014387,2]
[333253625,1721987456863,-500.0,0.00014387,2]
[333253626,1721987456873,-1309.55,0.00014387,2]
[333253627,1721987456884,-989.7,0.00014387,2]
[333253628,1721987456895,-500.0,0.00014387,2]
[333253629,1721987456905,-500.0,0.00014387,2]
[333253630,1721987456915,-175.008127,0.00014389,2]
[333253631,1721987456924,-175.008127,0.00014389,2]
[333253632,1721987456934,-276.395996,0.00014389,2]
[333253633,1721987456943,-238.607116,0.00014389,2]
[333253634,1721987456952,-238.607116,0.00014389,2]
[333253635,1721987456962,-194.970975,0.00014389,2]
[333253636,1721987456971,-194.970975,0.00014389,2]
[333253637,1721987456980,-151.0,0.00014389,2]
[333253638,1721987456990,-315.23908,0.00014389,2]
[333253639,1721987456999,-315.23908,0.00014389,2]
[333253640,1721987457009,-151.0,0.00014389,2]
[333253641,1721987457019,-1000.0,0.00014389,2]
[333253642,1721987457028,-500.0,0.00014397,2]
[333253643,1721987457038,-506.16,0.00014397,2]
[333253644,1721987457047,-500.0,0.00014397,2]
[333253645,1721987457056,-634.24,0.00014397,2]
[333253646,1721987457066,-553.55,0.00014397,2]
[333253647,1721987457076,-500.0,0.00014397,2]
[333253648,1721987457085,-643.25249146,0.00014397,2]
[333253649,1721987457094,-500.0,0.00014397,2]
[333253650,1721987457104,-500.0,0.00014397,2]
[333253651,1721987457113,-500.0,0.00014397,2]
[333253652,1721987457123,-504.83755215,0.00014397,2]
[333253653,1721987457134,-1031.47,0.00014397,2]
[333253654,1721987457146,-500.0,0.00014397,2]
[333253655,1721987457157,-630.61,0.00014397,2]
[333253656,1721987457167,-500.0,0.00014397,2]
[333253657,1721987457179,-500.0,0.00014397,2]
[333253658,1721987457188,-866.99,0.00014397,2]
[333253659,1721987457198,-500.0,0.00014397,2]
[333253660,1721987457209,-762.69,0.00014397,2]
[333253661,1721987457219,-429.79587811,0.00014397,2]
[333253662,1721987457230,-500.0,0.00014397,2]
[333253663,1721987457242,-825.83,0.00014397,2]
[333253664,1721987457254,-508.77,0.00014397,2]
[333253665,1721987457268,-565.43416786,0.00014397,2]
[333253666,1721987457279,-500.0,0.00014397,2]
[333253667,1721987457291,-997.35,0.00014397,2]
[333253668,1721987457302,-238.607116,0.00014397,2]
[333253669,1721987457313,-238.607116,0.00014397,2]
[333253670,1721987457325,-500.0,0.00014397,2]
[333253671,1721987457336,-500.0,0.00014397,2]
[333253672,1721987457348,-500.0,0.00014397,2]
[333253673,1721987457360,-702.32,0.00014397,2]
[333253674,1721987457372,-500.0,0.00014397,2]
[333253675,1721987457383,-500.0,0.00014397,2]
[333253676,1721987457394,-194.970975,0.00014397,2]
[333253677,1721987457405,-194.970975,0.00014397,2]
[333253678,1721987457416,-500.0,0.00014397,2]
[333253679,1721987457427,-1026.01,0.00014397,2]
[333253680,1721987457436,-505.71279425,0.00014397,2]
[333253681,1721987457446,-500.0,0.00014397,2]
[333253682,1721987457455,-500.0,0.00014397,2]
[333253683,1721987457466,-500.0,0.00014397,2]